Cogmind - Beta 13 @@@ ROGUE MODE // 2024.07.28 @ 16:43:01 Player: Sooty Result: Destroyed by L-31 Rogue with Katana Performance ------------- Evolutions (2) 1000 Regions Visited (4) 800 Robots Destroyed (21) 105 Value Destroyed (278) 278 Prototype IDs (0) 0 Alien Tech Used (0) 0 Bonus (48) 48 TOTAL SCORE: 2231 Bonus ------- Follower Combat Kills 60 Friendly Fire -12 Cogmind --------- Core Integrity 0/550 Matter 300/300 Energy 160/160 System Corruption 0% Temperature Cool (0) Movement Walking (260) Ox2 Location -8/Materials Parts ------- > --- POWER (2) -------- Light Nuclear Core > --- PROPULSION (2) --- Improved Aluminum Leg > --- UTILITY (4) ------ Large Storage Unit Reflective Plating > --- WEAPON (3) ------- (None) > --- INVENTORY (15) --- (None) Peak State ------------ > --- POWER ------------ Ion Engine Ion Engine > --- PROPULSION ------- Wheel Wheel > --- UTILITY ---------- Improved Heat Sink Large Storage Unit > --- WEAPON ----------- Small Laser Beam Rifle > --- INVENTORY -------- Light Nuclear Core Wheel Core Shielding Small Laser Grenade Launcher Mining Laser Mining Claw Stasis Trap Stasis Trap Stasis Trap Stasis Trap [Rating: 12] Favorites ----------- Power Ion Engine Engine Ion Engine Power Core Light Nuclear Core Propulsion Wheel Leg Improved Aluminum Leg Wheel Wheel Utility Improved Heat Sink Device Improved Heat Sink Storage Large Storage Unit Protection Core Shielding Weapon Small Laser Energy Gun Small Laser Launcher Grenade Launcher Special Weapon Mining Laser Slashing Weapon Mining Claw Build | -11 -10 -10 -9 -8 ------- Run | Yrd Mat Min Mat Mat Slots Evolved 4 | . . . 2 2 Power 1 | . . . 1 . Propulsion . | . . . . . Utility 2 | . . . 1 1 Weapon 1 | . . . . 1 Parts Attached 27 | 6 6 2 4 9 Power 4 | 1 . . 2 1 Engine 3 | 1 . . 2 . Core 1 | . . . . 1 Reactor . | . . . . . Propulsion 9 | 3 1 2 . 3 Treads . | . . . . . Leg 1 | . . . . 1 Wheel 8 | 3 1 2 . 2 Hover . | . . . . . Flight . | . . . . . Utility 7 | 1 3 . 1 2 Device 1 | . 1 . . . Storage 3 | 1 2 . . . Processor . | . . . . . Hackware . | . . . . . Protection 3 | . . . 1 2 Artifact . | . . . . . Weapon 7 | 1 2 . 1 3 Energy Gun 4 | 1 2 . 1 . Energy Cannon . | . . . . . Ballistic Gun . | . . . . . Ballistic Cannon . | . . . . . Launcher 1 | . . . . 1 Special Weapon 1 | . . . . 1 Impact Weapon . | . . . . . Slashing Weapon 1 | . . . . 1 Piercing Weapon . | . . . . . Special Melee Weapon . | . . . . . Unidentified Prototypes . | . . . . . Parts Lost 16 | . . 2 1 13 Power 3 | . . . 1 2 Propulsion 5 | . . 2 . 3 Utility 3 | . . . . 3 Weapon 5 | . . . . 5 Highest Loss Streak 13 | . . 2 1 13 To Critical Strikes . | . . . . . Average Slot Usage (%) 90 | . 91 99 98 68 Engine 15 | . 14 14 21 13 Wheel 23 | . 28 27 22 13 Device 10 | . 7 14 11 7 Storage 12 | . 14 14 11 9 Protection 4 | . . . 10 8 Energy Gun 22 | . 26 28 22 12 Naked Turns . | . . . . . Heaviest Build 35 | 11 30 30 35 32 Greatest Support 32 | 26 32 32 20 20 Greatest Overweight (x) 7 | 1 . 1 1 7 Average Overweight (x) . | . . . 1 1 Largest Inventory Capacity 15 | 8 15 15 15 15 Average Capacity 13 | 7 9 15 15 15 Most Carried 15 | 5 9 15 11 11 Average Carried 8 | 1 7 12 9 7 Final Capacity 15 | 8 15 15 15 15 Final Carried 12 | 5 8 12 9 . Class Distribution -------------------- 75% | Mutant 24% | Scavenger-Mutant Dominant Class ---------------- Mutant | -10/Materials Mutant | -10/Mines Scavenger-Mutant | -9/Materials Scavenger-Mutant | -8/Materials Resources | -11 -10 -10 -9 -8 ----------- Run | Yrd Mat Min Mat Mat Matter Collected 409 | 154 156 10 50 39 Remotely . | . . . . . Salvage Created 726 | 176 270 . 79 201 Parts 51 | 14 12 . 10 15 Haulers Intercepted 3 | . 2 . . 1 Recyclers Shooed 2 | . . . . 2 Parts Field Recycled . | . . . . . Retrieved Matter . | . . . . . Parts Self-Destructed . | . . . . . Prevented . | . . . . . Kills | -11 -10 -10 -9 -8 ------- Run | Yrd Mat Min Mat Mat Combat Hostiles Destroyed 7 | . 2 . 3 2 Melee 1 | . . . . 1 Guns 6 | . 2 . 3 1 Classes Destroyed 9 | 2 3 . 2 2 Worker 2 | . . . 1 1 Builder 2 | . 1 . 1 . Tunneler 5 | 4 . . . 1 Hauler 3 | . 2 . . 1 Recycler 2 | 1 1 . . . Swarmer 3 | . . . 3 . Grunt 2 | . 2 . . . Duelist 1 | . . . . 1 Sentry 1 | . . . . 1 Best Kill Streak 4 | 4 3 . 3 3 Combat Bots Only 3 | . 2 . 3 1 Max Kills in Single Turn 2 | 1 2 . 1 1 Gunslinging 1 | . 1 . . . Exploded . | . . . . . Melee 1 | . . . . 1 Uniques/NPCs Destroyed . | . . . . . Combat | -11 -10 -10 -9 -8 -------- Run | Yrd Mat Min Mat Mat Hostile Shots Fired 125 | . 6 16 21 82 Missed 23 | . 1 4 3 15 Damage Taken 2076 | . 67 470 149 1390 Core 814 | . . 207 35 572 Absorbed by Shields . | . . . . . Redirected to Shielding 50 | . . . 6 44 Ignored by Resistances 20 | . . . . 20 Core Remaining (%) 69 | 100 . 17 91 . Volleys Fired 71 | 12 21 3 15 20 Largest 2 | 1 2 2 2 2 Hottest 100 | 40 96 96 96 100 Shots Fired 128 | 12 41 7 30 38 Gun 125 | 12 41 7 30 35 Cannon . | . . . . . Launcher 1 | . . . . 1 Special 2 | . . . . 2 Kinetic . | . . . . . Thermal 127 | 12 41 7 30 37 Explosive 1 | . . . . 1 Electromagnetic . | . . . . . Robot Hit Streak 11 | 11 5 7 5 9 Robot Miss Streak 4 | . 3 1 4 3 Penetration Max . | . . . . . Secondary Targets 1 | . 1 . . . Max Gunslinging Chain 1 | . 1 . . . Shots Hit Robots 80 | 11 24 4 14 27 Core Hits 40 | 6 11 3 5 15 Critical Kills . | . . . . . Critical Parts Destroyed . | . . . . . Critical Strikes . | . . . . . Melee Attacks 3 | . . . . 3 Impact . | . . . . . Slashing 3 | . . . . 3 Piercing . | . . . . . Sneak Attacks . | . . . . . Combat Hostiles . | . . . . . Follow-up Attacks . | . . . . . Damage Inflicted 1116 | 121 309 101 157 428 Guns 898 | 121 309 66 157 245 Cannons . | . . . . . Explosions 64 | . . . . 64 Melee 48 | . . . . 48 Ramming 58 | . . 35 . 23 Kinetic . | . . . . . Thermal 946 | 121 309 66 157 293 Explosive 64 | . . . . 64 Electromagnetic . | . . . . . Impact . | . . . . . Slashing 48 | . . . . 48 Piercing . | . . . . . Highest Corruption 2 | . . 2 . . Average Corruption 2 | . . 2 . . Corruption Purged . | . . . . . Corruption Blocked . | . . . . . Effects 3 | . . 3 . . Matter Fused 1 | . . 1 . . Energy Discharges 1 | . . 1 . . Misfires 1 | . . 1 . . Overload Shots . | . . . . . Overflow Damage . | . . . . . Projectiles . | . . . . . Explosions . | . . . . . Melee . | . . . . . Knockbacks . | . . . . . Impact . | . . . . . Kinetic . | . . . . . Secondary . | . . . . . Self-Inflicted Damage 17 | . . 17 . . Shots . | . . . . . Rammed 2 | . . 2 . . Targets Rammed 16 | . . 2 . 14 Kicked 14 | . . . . 14 Crushed . | . . . . . Highest Temperature 235 | . 235 . . . Average Temperature 94 | . 94 . . . Received Heat Transfer 408 | . 39 . . 369 Siege Activations . | . . . . . Robots Corrupted . | . . . . . Combat Hostiles . | . . . . . Parts Fried . | . . . . . Impact Corruptions . | . . . . . Robots Melted . | . . . . . Combat Hostiles . | . . . . . Parts Melted . | . . . . . Heat Transferred 2204 | 275 756 161 362 650 Parts Sabotaged . | . . . . . Parts Stolen . | . . . . . Parts Stripped . | . . . . . Power Chain Reactions . | . . . . . Alert | -11 -10 -10 -9 -8 ------- Run | Yrd Mat Min Mat Mat Peak Influence 189 | 25 91 91 91 189 Initial 38 | . 16 35 11 38 Average 65 | 8 55 51 59 123 Maximum Alert Level . | . . . . . Low Security (%) 100 | 100 100 100 100 100 Level 1 . | . . . . . Level 2 . | . . . . . Level 3 . | . . . . . Level 4 . | . . . . . Level 5 . | . . . . . High Security . | . . . . . Max Security . | . . . . . Squads Dispatched 3 | . . . 1 2 Investigation 1 | . . . . 1 Extermination . | . . . . . Reinforcement 2 | . . . 1 1 Assault . | . . . . . Garrison . | . . . . . Intercept . | . . . . . Searches Triggered . | . . . . . Construction Impeded . | . . . . . Haulers Reinforced . | . . . . . Active Scanning Responses . | . . . . . Cargo Convoy Interrupts . | . . . . . Stealth | -11 -10 -10 -9 -8 --------- Run | Yrd Mat Min Mat Mat Distress Signals 1 | . . . . 1 Communications Jammed . | . . . . . Distress Signals . | . . . . . Times Spotted 41 | . 3 19 3 16 Peak Tracking Total 9 | . 2 9 3 8 Tactical Retreats 3 | . . . . 3 Traps | -11 -10 -10 -9 -8 ------- Run | Yrd Mat Min Mat Mat Traps Triggered . | . . . . . Indirectly . | . . . . . Trap Hack Attempts . | . . . . . Triggered . | . . . . . Disarmed . | . . . . . Reprogrammed . | . . . . . Reused 1 | . . . . 1 Traps Extracted . | . . . . . Installed 1 | . . . . 1 Triggered 1 | . . . . 1 Most Traps Carried 5 | . . 5 4 4 Machines | -11 -10 -10 -9 -8 ---------- Run | Yrd Mat Min Mat Mat Machines Disabled 1 | . . . . 1 Max in Single Turn 1 | . . . . 1 Machines Repaired . | . . . . . Machines Dismantled . | . . . . . Machines Sabotaged . | . . . . . Overloaded Fab Kills . | . . . . . Hacking | -11 -10 -10 -9 -8 --------- Run | Yrd Mat Min Mat Mat Machines Accessed 5 | . 1 . 3 1 Terminals 4 | . 1 . 2 1 Fabricators . | . . . . . Repair Stations . | . . . . . Recycling Units . | . . . . . Scanalyzers 1 | . . . 1 . Garrison Access . | . . . . . Total Hacks 27 | . 3 . 20 4 Successful 19 | . 1 . 15 3 Failed 8 | . 2 . 5 1 Catastrophic . | . . . . . Database Lockouts . | . . . . . Manual . | . . . . . Terminals 15 | . 3 . 8 4 Fabricators . | . . . . . Repair Stations . | . . . . . Recycling Units . | . . . . . Scanalyzers 12 | . . . 12 . Garrison Access . | . . . . . Terminal Hacks 9 | . 1 . 5 3 Record 3 | . . . 1 2 Robot Analysis 2 | . . . 2 . Alert Level 3 | . 1 . 2 . Recall Reinforcements 1 | . . . . 1 Fabricator Hacks . | . . . . . Repair Station Hacks . | . . . . . Recycling Unit Hacks . | . . . . . Scanalyzer 10 | . . . 10 . Insert Component 5 | . . . 5 . Analyze 5 | . . . 5 . Garrison Access Hacks . | . . . . . Unauthorized Hacks . | . . . . . Terminals . | . . . . . Fabricators . | . . . . . Repair Stations . | . . . . . Recycling Units . | . . . . . Scanalyzers . | . . . . . Garrison Access . | . . . . . Data Cores Recovered . | . . . . . Used . | . . . . . Hacking Detections 5 | . 1 . 3 1 Full Trace Events 2 | . . . 1 1 Feedback Events . | . . . . . Feedback Blocked . | . . . . . Robot Schematics Acquired . | . . . . . Robots Built . | . . . . . Authchips . | . . . . . Time . | . . . . . Total Robot Build Rating . | . . . . . Part Schematics Acquired 5 | . . . 5 . Parts Built . | . . . . . Authchips . | . . . . . Time . | . . . . . Total Part Build Rating . | . . . . . Parts Repaired . | . . . . . Time . | . . . . . Parts Recycled . | . . . . . Recycled Matter . | . . . . . Retrieved Matter . | . . . . . Retrieved Components . | . . . . . Parts Scanalyzed 5 | . . . 5 . Part Schematics Acquired 5 | . . . 5 . Parts Damaged . | . . . . . Bothacking | -11 -10 -10 -9 -8 ------------ Run | Yrd Mat Min Mat Mat Used RIF Installer . | . . . . . Robots Hacked . | . . . . . Non-combat . | . . . . . Combat . | . . . . . Robot Hacks Applied . | . . . . . Relay Couplers Released . | . . . . . Fabnet Peak Effective % . | . . . . . Robots Rewired . | . . . . . Allies Hacked . | . . . . . Hacks Repelled . | . . . . . Allies | -11 -10 -10 -9 -8 -------- Run | Yrd Mat Min Mat Mat Total Allies 3 | . . 3 . . Largest Group 3 | . . 3 . . Highest-Rated Group 40 | . . 40 . . Highest-Rated Ally 16 | . . 16 . . Total Orders . | . . . . . Ally Attacks 14 | . . 14 . . Total Damage 146 | . . 146 . . Kills 4 | . . 4 . . Allies Corrupted . | . . . . . Allies Melted . | . . . . . Intel | -11 -10 -10 -9 -8 ------- Run | Yrd Mat Min Mat Mat Robot Analysis Total 2 | . . . 2 . Derelict Logs Recovered 1 | . . 1 . . Drone Launches . | . . . . . Drone Recoveries . | . . . . . Exploration | -11 -10 -10 -9 -8 ------------- Run | Yrd Mat Min Mat Mat Turns Passed 1207 | 77 295 346 244 245 Spaces Moved 912 | 44 228 318 204 118 Core 9 | 7 . . . 2 Treads . | . . . . . Legs 2 | . . . . 2 Wheels 901 | 37 228 318 204 114 Hover . | . . . . . Flight . | . . . . . Fastest Speed 50 | 50 90 95 95 95 Average Speed 96 | 83 94 99 95 103 Slowest Speed 400 | 100 100 115 95 400 Overloaded Moves . | . . . . . Propulsion Burnouts . | . . . . . Robots Hopped . | . . . . . Cave-ins Triggered . | . . . . . Exploration Rate (%) 30 | 4 34 76 22 14 Regions Visited 4 Branch Regions 1 Pre-discovered Areas 1 | . . 1 . . Known Exits Taken . | . . . . . Unknown Exits Taken 4 | 1 1 1 1 . Scrap Searched 1 | . . 1 . . Spaces Dug . | . . . . . Terrain Destroyed 8 | . . . . 8 Melee . | . . . . . Projectile . | . . . . . AOE 8 | . . . . 8 Terrain Rammed . | . . . . . Walls Destroyed . | . . . . . Machines Disabled . | . . . . . Actions | -11 -10 -10 -9 -8 --------- Run | Yrd Mat Min Mat Mat Total 1081 | 71 267 342 224 177 Wait 13 | . . 10 . 3 Move 908 | 43 227 317 203 118 Hop . | . . . . . Pick Up 31 | 10 9 7 1 4 Fast Attach . | . . . . . Attach 21 | 5 3 2 3 8 Detach . | . . . . . Swap 6 | 1 3 . 1 1 Drop 11 | . 4 1 1 5 Fire 71 | 12 21 3 15 20 Melee 3 | . . . . 3 Ram 2 | . . 2 . . Kick 14 | . . . . 14 Crush . | . . . . . Escape Stasis . | . . . . . Rewire . | . . . . . Trap 1 | . . . . 1 Miscellaneous . | . . . . . Route ------- -11/Scrapyard -10/Materials -10/Mines -9/Materials -8/Materials History --------- Turn | Location | Event 10 | -11/Scrapyard | Discovered new exit (range 16) 78 | -11/Scrapyard | Entered Materials 303 | -10/Materials | Build established: Mutant 329 | -10/Materials | Discovered new exit (range 9) 373 | -10/Materials | Entered Mines 432 | -10/Mines | Found a hidden stash of uninstalled traps 473 | -10/Mines | Assisted by bots powering up and referring to "LRC-V3" 516 | -10/Mines | Learned location of Zion (-6) 639 | -10/Mines | Assembled infested the area 673 | -10/Mines | Core integrity fell below 50% 692 | -10/Mines | Core integrity fell below 20% 716 | -10/Mines | Discovered new exit (range 4) 719 | -10/Mines | Entered Materials 719 | -9/Materials | Evolved 2 slots: Power x1, Utility x1 939 | -9/Materials | Discovered new exit (range 4) 963 | -9/Materials | Entered another Materials area 963 | -8/Materials | Evolved 2 slots: Utility x1, Weapon x1 1161 | -8/Materials | Core integrity fell below 50% 1183 | -8/Materials | Core integrity fell below 20% 1204 | -8/Materials | Lost 13 parts (2p3n3u5w) 1208 | -8/Materials | Destroyed by L-31 Rogue with Katana Last Messages --------------- 01174_ Kicked G-47 Trooper out of the way. 01176_ Kicked G-47 Trooper. 01186_ Acquired 1 matter. 01186_ Dropped Stasis Trap. 01187_ Installed Stasis Trap. 01188_ Kicked G-47 Trooper out of the way. 01190_ L-31 Rogue triggered Stasis Trap. 01190_ A bubble of rippling energy engulfs the area. 01190_ Field strength at 84. 01190_ Kicked G-47 Trooper. 01195_ Kicked G-47 Trooper out of the way. 01196_ Field strength at 68. 01197_ Field strength at 52. 01198_ Field strength at 36. 01198_ Kicked G-47 Trooper. 01199_ Field strength at 20. 01200_ Field strength at 4. 01201_ Kicked G-47 Trooper out of the way. 01201_ Stasis field depleted. Map ----- +----------------------------------------------------+ | ???????????????????# ??????????????????????????? | | ???????????????????# ??????????????????????????? | | ???????????????????# ??????????????????????????? | | ???????????????????+ ??????????????????????????? | | ???????????????????# ??????????????????????????? | | ???????????????????# ??????????????????????????? | | ???????????????????? ##????????????????????????? | | ???????????????????? #????????????????????????? | | ????????????????????? ##???????????????????????? | | ????????????????????? #???????????????????????? | | ?????????????????????? #????????????????????????? | | ?????????????????????? #????????????????????????? | | ??????????????????????# #????????????????????????? | | ??????????????????????# #????????????????????????? | | ??????????????????????#&#????????????????????????? | | ??????????????????????# #???????????????? ?????? | | ??????????????????????# #???????????????? ?????? | | ??????????????????????#%#???????????????? ????? | | ??????????????????????# #???????????????# #????? | | ??????????????????????#%#???????????????# #????? | | ??????????????????????# #???????????????# #????? | | ??????????????????????#%#???????????????# #????? | | ??????????????????????#&###?????????????# #????? | | ??????????????????????#%g #?????????????# #????? | | ??????????????????????#%l #?????????????# #????? | | ??????????????????????# @#?????????????# #????? | | ??????????????????????# #?????????????# #????? | | ??????????????????????# #?????????????# #????? | | ????????????########### u#?????????????# #????? | | ????????????# # #????########?# #????? | | ????????????# "" # ###### #?# #????? | | ????????????# Y" # + #?# ###### | | ????????????# """ "" # ###### #?# ## | | ????????????# """ + #????# #?# ## | | ????????????# """ #Y #????# #?# !## " | | ????????????# #k #????# #?#* !##! "" | | ????????????########### #????# #?#!!%## %" | | ?????????????????????? #????# ### !! +% % | | ????????????????????? #????# + ==####+# | | ???????????????????? #????# #######??# # | | ????????????????????### +????# #????????#+# | | ??????????????????????# #????# #??????? | | ??????????????????????# #????# #????? " | | ??????????????????????# #######+#######?# " | | ??????????????????????# #?# "" " | | ??????????????????????# #?# "T " | | ??????????????????????# #?# "" " | | ??????????????????????###########+### #?# | | ???????????????????????????# = # #?######## | | ???????????????????????????# T # #??####### | +----------------------------------------------------+ Best States ------------- Heat Dissipation 45 Energy Generation 15 Energy Capacity 400 Matter Stores 300 Matter Capacity 300 Sight Range 16 Terrain Scan Density 10 Armor Coverage 150 Resistance: TH 10 Core Shielding 20 Evasion (%) 44 Item Schematics ----------------- Wheel | -9/Materials | Scanalyzed Mining Claw | -9/Materials | Scanalyzed Grenade Launcher | -9/Materials | Scanalyzed Lgt. Nuclear Core | -9/Materials | Scanalyzed Mining Laser | -9/Materials | Scanalyzed Robot Schematics ------------------ None Fabricated ------------ Nothing Alien Tech Used ----------------- None Achievements -------------- I Survived The Infestation Challenges ------------ None Game ------ Seed CentriumHeatLeg Manual? 0 Play Time 00:21:52 Cumulative 18.3 hours Start 2024.07.28 @ 16:22:40 End 2024.07.28 @ 16:43:01 Sessions 1 Manual Loads 0 Difficulty Rogue Special Mode None Game No. 20 Rogue 20 Adventurer 0 Explorer 0 Win Type - Total 0 Types 0/0/0/0/0/0/0/0/0 Lore% 19 Gallery% 23 Achievement% 19 Wizard Run 0 Options --------- Layout 1 ASCII 0 Keyboard 0 Movement Mouse Keybinds 0 Fullscreen 1 Font 24/Terminus Map View 50x35 Zoom Use 0% Tactical HUD 1 Map Filters NONE Filters NONE Steam 1 RUN: 8fe5f9b9-b043-4ed3-af45-2d4f84961e55